fUSD/lending_fUSD_20260111
["ID","MTS","AMOUNT","RATE_DAILY","PERIOD"]
[401357981,1768153837694,-159.89186614,0.00015627,2]
[401357983,1768153837704,-167.68019779,0.00015627,2]
[401357985,1768153837713,-622.40478051,0.00015644,2]
[401358032,1768153838283,-1059.79521949,0.00015644,2]
[401358034,1768153838293,-150.0,0.00015682,2]
[401358036,1768153838303,-207.08081966,0.00015737,2]
[401358038,1768153838312,-13444.71412176,0.0001575,2]
[401358040,1768153838321,-151.0,0.00015783,2]
[401358042,1768153838331,-500.0,0.00015792,2]
[401358044,1768153838340,-151.0,0.00015795,2]
[401358046,1768153838350,-151.0,0.00015795,2]
[401358048,1768153838359,-237.86,0.00015807,2]
[401358050,1768153838368,-745.834368,0.000159,2]
[401358052,1768153838380,-1354.1933803,0.000159,2]
[401358054,1768153838389,-1682.2,0.00015918,2]
[401358057,1768153838399,-500.0,0.00015955,2]
[401358058,1768153838409,-500.0,0.00015955,2]
[401358060,1768153838418,-500.0,0.00015955,2]
[401358062,1768153838428,-500.0,0.00015955,2]
[401358065,1768153838438,-525.0,0.00015955,2]
[401358066,1768153838447,-586.09753353,0.00015955,2]
[401358068,1768153838457,-500.0,0.00015955,2]
[401358070,1768153838466,-1320.23379111,0.00015956,2]
[401358073,1768153838478,-10953.09439891,0.00015956,2]
[401358156,1768153839296,927811.56374437,0.00014896,2]
[401358216,1768153839806,-8646.00078,0.00014896,2]
[401358252,1768153840157,-1.7e-07,0.00014896,2]
[401358255,1768153840172,-1655.35490122,0.00014896,2]
[401358257,1768153840183,-4075.44766994,0.00014896,2]
[401358259,1768153840193,-421.82654119,0.00014896,2]
[401358263,1768153840214,-57389.80636311,0.00014896,2]
[401358265,1768153840223,-151.0,0.00015769,2]
[401358267,1768153840233,-4348.6583507,0.00015956,2]
[401358269,1768153840242,-500.0,0.00015999,2]
[401358271,1768153840251,-2100.0277483,0.00016016,2]
[401358272,1768153840260,-3892.64,0.00016057,2]
[401358274,1768153840269,-13444.71412176,0.00016057,2]
[401358276,1768153840278,-500.0,0.00016065,2]
[401358277,1768153840287,-3110.71,0.00016116,2]
[401358278,1768153840296,-299.99,0.00016116,4]
[401358279,1768153840305,-9999.99,0.00016116,2]
[401358280,1768153840314,-255.0,0.00016121,2]
[401358281,1768153840323,-1682.2,0.00016192,2]
[401358282,1768153840331,-150.0,0.000162,2]
[401358283,1768153840340,-150.0,0.000162,2]
[401358284,1768153840349,-501.77065485,0.000162,2]
[401358285,1768153840358,-150.0,0.000162,2]
[401358286,1768153840367,-150.0,0.000162,2]
[401358289,1768153840378,-150.0,0.000162,2]
[401358290,1768153840388,-150.0,0.000162,2]
[401358292,1768153840397,-150.0,0.000162,2]
[401358294,1768153840406,-150.0,0.000162,2]
[401358296,1768153840415,-150.0,0.000162,2]
[401358298,1768153840424,-150.0,0.000162,2]
[401358300,1768153840433,-150.0,0.000162,2]
[401358302,1768153840442,-150.0,0.000162,2]
[401358304,1768153840453,-150.0,0.000162,2]
[401358306,1768153840461,-501.77065485,0.00016218,2]
[401358308,1768153840470,-500.0,0.00016231,2]
[401358310,1768153840479,-501.77065485,0.00016236,2]
[401358312,1768153840490,-12173.24556009,0.0001625,2]
[401358314,1768153840502,-501.77065485,0.00016255,2]
[401358316,1768153840511,-501.77065485,0.00016273,2]
[401358318,1768153840520,-501.77065485,0.00016291,2]
[401358320,1768153840530,-501.77065485,0.00016309,2]
[401358322,1768153840539,-501.77065485,0.00016327,2]
[401358324,1768153840548,-500.0,0.00016339,2]
[401358326,1768153840557,-501.77065485,0.00016345,2]
[401358328,1768153840566,-150.0,0.0001635,2]
[401358330,1768153840575,-501.77065485,0.00016364,2]
[401358332,1768153840585,-13444.71412176,0.00016364,2]
[401358334,1768153840594,-150.0,0.0001638,2]
[401358336,1768153840605,-150.0,0.0001638,2]
[401358338,1768153840614,-501.77065485,0.00016382,2]
[401358340,1768153840623,-501.77065485,0.000164,2]
[401358342,1768153840632,-420.0,0.00016411,2]
[401358344,1768153840641,-501.77065485,0.00016418,2]
[401358346,1768153840649,-150.0,0.00016425,2]
[401358348,1768153840658,-12173.24556,0.00016433,2]
[401358350,1768153840667,-501.77065485,0.00016436,2]
[401358351,1768153840678,-600.0,0.00016438,2]
[401358353,1768153840689,-226.62,0.00016438,2]
[401358356,1768153840698,-800.0,0.00016438,2]
[401358358,1768153840708,-888.0,0.00016438,2]
[401358359,1768153840717,-188.46718757,0.00016438,2]
[401358361,1768153840726,-420.0,0.00016454,2]
[401358363,1768153840734,-501.77065485,0.00016455,2]
[401358365,1768153840743,-150.0,0.00016457,2]
[401358367,1768153840752,-1682.2,0.00016466,2]
[401358369,1768153840761,-501.77065485,0.00016473,2]
[401358371,1768153840770,-501.77065485,0.00016491,2]
[401358373,1768153840779,-2411.79185244,0.00016495,2]
[401358375,1768153840788,-195.0,0.00016495,2]
[401358377,1768153840797,-600.0,0.00016495,2]
[401358379,1768153840807,-300.0,0.00016495,2]
[401358381,1768153840816,-2506.83500152,0.00016495,2]
[401358383,1768153840828,-250.0,0.00016495,2]
[401358385,1768153840838,-300.0,0.00016495,2]
[401358387,1768153840847,-250.0,0.00016495,2]
[401358389,1768153840856,-250.0,0.00016495,2]
[401358391,1768153840866,-150.0,0.000165,2]
[401358393,1768153840876,-150.0,0.000165,2]
[401358395,1768153840885,-150.0,0.000165,2]
[401358397,1768153840894,-501.77065485,0.00016509,2]
[401358399,1768153840906,-1113.0,0.00016521,2]
[401358401,1768153840915,-501.77065485,0.00016527,2]
[401358403,1768153840924,-1680.0,0.00016538,2]
[401358405,1768153840934,-501.77065485,0.00016545,2]
[401358407,1768153840944,-150.0,0.0001656,2]
[401358409,1768153840953,-150.0,0.0001656,2]
[401358411,1768153840963,-501.77065485,0.00016564,2]
[401358413,1768153840972,-1113.0,0.00016579,2]
[401358415,1768153840981,-501.77065485,0.00016582,2]
[401358417,1768153840990,-501.77065485,0.000166,2]
[401358419,1768153841000,-500.0,0.00016613,2]
[401358421,1768153841009,-12173.24556,0.00016617,2]
[401358423,1768153841019,-501.77065485,0.00016618,2]
[401358425,1768153841028,-1113.0,0.00016628,2]
[401358427,1768153841037,-200.0,0.00016634,2]
[401358429,1768153841046,-501.77065485,0.00016636,2]
[401358431,1768153841055,-150.0,0.0001665,2]
[401358433,1768153841064,-150.0,0.0001665,2]
[401358435,1768153841073,-501.77065485,0.00016655,2]
[401358437,1768153841082,-13444.71412176,0.00016672,2]
[401358439,1768153841091,-501.77065485,0.00016673,2]
[401358441,1768153841100,-1113.0,0.00016676,2]
[401358443,1768153841109,-501.77065485,0.00016691,2]
[401358445,1768153841119,-1089.8409,0.00016709,2]
[401358447,1768153841127,-501.77065485,0.00016709,2]
[401358449,1768153841136,-159.5,0.00016712,2]
[401358450,1768153841145,-150.0,0.00016714,2]
[401358452,1768153841155,-501.77065485,0.00016727,2]
[401358454,1768153841167,-1113.0,0.00016739,2]
[401358456,1768153841176,-150.0,0.0001674,2]
[401358458,1768153841185,-150.0,0.0001674,2]
[401358460,1768153841194,-1682.2,0.0001674,2]
[401358463,1768153841204,-501.77065485,0.00016745,2]
[401358464,1768153841213,-501.77065485,0.00016764,2]
[401358467,1768153841223,-1113.0,0.00016766,2]
[401358468,1768153841232,-501.77065485,0.00016782,2]
[401358470,1768153841241,-1113.0,0.00016786,2]
[401358472,1768153841251,-1113.0,0.00016795,2]
[401358474,1768153841260,-501.77065485,0.000168,2]
[401358476,1768153841269,-150.0,0.000168,2]
[401358478,1768153841278,-150.0,0.000168,2]
[401358480,1768153841287,-150.0,0.000168,2]
[401358482,1768153841296,-12173.24556,0.000168,2]
[401358484,1768153841306,-501.77065485,0.00016818,2]
[401358486,1768153841315,-3892.64,0.00016822,2]
[401358488,1768153841324,-501.77065485,0.00016836,2]
[401358490,1768153841333,-1113.0,0.00016847,2]
[401358492,1768153841343,-501.77065485,0.00016855,2]
[401358494,1768153841352,-664.28,0.00016872,2]
[401358496,1768153841361,-501.77065485,0.00016873,2]
[401358498,1768153841370,-150.0,0.00016875,2]
[401358500,1768153841379,-158.55612686,0.00016887,2]
[401358502,1768153841388,-501.77065485,0.00016891,2]
[401358504,1768153841398,-1113.0,0.00016909,2]
[401358506,1768153841407,-501.77065485,0.00016909,2]
[401358508,1768153841416,-1113.0,0.0001692,2]
[401358510,1768153841425,-150.0,0.0001692,2]
[401358512,1768153841434,-150.0,0.0001692,2]
[401358514,1768153841443,-501.77065485,0.00016927,2]
[401358516,1768153841452,-501.77065485,0.00016945,2]
[401358517,1768153841462,-150.0,0.0001695,2]
[401358520,1768153841472,-2716.0,0.00016952,2]
[401358521,1768153841481,-501.77065485,0.00016964,2]
[401358524,1768153841491,-150.0,0.00016971,2]
[401358525,1768153841500,-13444.71412176,0.00016979,2]
[401358528,1768153841510,-501.77065485,0.00016982,2]
[401358529,1768153841519,-200.01,0.00016986,2]
[401358531,1768153841528,-50395.02,0.00016986,2]
[401358534,1768153841538,-658.94,0.0001699,2]
[401358535,1768153841548,-501.77065485,0.00017,2]
[401358538,1768153841557,-4000.0,0.00017,2]
[401358539,1768153841566,-1000.0,0.00017,2]
[401358542,1768153841576,-250.0,0.00017,2]
[401358543,1768153841585,-21000.0,0.00017,6]
[401358545,1768153841595,-628.5421539,0.00017009,2]
[401358548,1768153841605,-336.43676287,0.00017009,2]
[401358550,1768153841614,-1682.2,0.00017014,2]
[401358551,1768153841626,-501.77065485,0.00017018,2]
[401358553,1768153841638,-501.77065485,0.00017036,2]
[401358556,1768153841648,-661.82,0.00017041,2]
[401358558,1768153841660,-482.99,0.00017041,2]
[401358559,1768153841670,-822.37,0.00017041,2]
[401358561,1768153841681,-661.82,0.00017041,2]
[401358564,1768153841691,-501.77065485,0.00017055,2]
[401358566,1768153841702,-237.86,0.00017055,2]
[401358567,1768153841712,-256.01043912,0.00017073,2]
[401358569,1768153841722,-500.0,0.00017073,2]
[401358572,1768153841733,-500.0,0.00017073,2]
[401358573,1768153841743,-500.0,0.00017073,2]
[401358575,1768153841752,-500.0,0.00017073,2]
[401358578,1768153841761,-500.0,0.00017073,2]
[401358580,1768153841771,-500.0,0.00017073,2]
[401358581,1768153841780,-500.0,0.00017073,2]
[401358584,1768153841790,-500.0,0.00017073,2]
[401358585,1768153841799,-500.51807202,0.00017073,2]
[401358587,1768153841809,-500.0,0.00017073,2]
[401358589,1768153841818,-500.88165281,0.00017073,2]
[401358591,1768153841831,-368.2931148,0.00017073,2]
[401358593,1768153841840,-500.0,0.00017073,2]
[401358595,1768153841849,-632.9385196,0.00017073,2]
[401358597,1768153841859,-500.0,0.00017073,2]
[401358600,1768153841870,-646.79718152,0.00017073,2]
[401358602,1768153841880,-500.0,0.00017073,2]
[401358604,1768153841889,-500.35865893,0.00017073,2]
[401358605,1768153841900,-500.0,0.00017073,2]
[401358608,1768153841909,-501.064427,0.00017073,2]
[401358610,1768153841919,-503.68229257,0.00017073,2]
[401358611,1768153841929,-500.0,0.00017073,2]
[401358613,1768153841939,-501.08333283,0.00017073,2]
[401358615,1768153841948,-501.77065485,0.00017073,2]
[401358617,1768153841957,-658.94,0.0001709,2]
[401358619,1768153841966,-501.77065485,0.00017091,2]
[401358622,1768153841976,-500.0,0.00017099,2]
[401358624,1768153841986,-651.90523038,0.00017099,2]
[401358625,1768153841995,-500.0,0.00017099,2]
[401358627,1768153842005,-500.0,0.00017099,2]
[401358629,1768153842015,-500.0,0.00017099,2]
[401358631,1768153842024,-238.92822807,0.00017099,2]
[401358634,1768153842034,-578.20924308,0.00017099,2]
[401358635,1768153842043,-250.0,0.00017099,2]
[401358637,1768153842053,-322.6107,0.00017099,2]
[401358640,1768153842062,-998.0,0.00017099,2]
[401358641,1768153842071,-402.0,0.00017099,2]
[401358643,1768153842080,-250.0,0.00017099,2]
[401358645,1768153842089,-250.0,0.00017099,2]
[401358646,1768153842098,-250.0,0.00017099,2]
[401358648,1768153842107,-553.64373807,0.00017099,2]
[401358650,1768153842117,-620.0,0.00017099,2]
[401358652,1768153842126,-500.0,0.00017099,2]
[401358654,1768153842135,-150.0,0.000171,2]
[401358656,1768153842144,-150.0,0.000171,2]
[401358658,1768153842153,-150.0,0.000171,2]
[401358660,1768153842162,-150.0,0.000171,2]
[401358662,1768153842171,-150.0,0.000171,2]
[401358664,1768153842180,-150.0,0.000171,2]
[401358666,1768153842189,-150.0,0.000171,2]
[401358668,1768153842201,-150.0,0.000171,2]
[401358670,1768153842210,-150.0,0.000171,2]
[401358672,1768153842219,-42000.0,0.000171,6]
[401358674,1768153842228,-164.94,0.00017101,2]
[401358676,1768153842237,-501.77065485,0.00017109,2]
[401358678,1768153842246,-2716.0,0.00017111,2]
[401358682,1768153842255,-501.77065485,0.00017127,2]
[401358683,1768153842264,-501.77065485,0.00017145,2]
[401358686,1768153842274,-501.77065485,0.00017164,2]
[401358688,1768153842284,-200.0,0.00017174,2]
[401358690,1768153842293,-171.49,0.00017178,2]
[401358692,1768153842303,-305.19,0.00017178,2]
[401358693,1768153842312,-171.49,0.00017178,2]
[401358695,1768153842322,-171.49,0.00017178,2]
[401358698,1768153842331,-501.77065485,0.00017182,2]
[401358700,1768153842341,-340.11,0.00017186,2]
[401358702,1768153842351,-658.94,0.0001719,2]
[401358703,1768153842360,-500.0,0.00017199,2]
[401358704,1768153842370,-501.77065485,0.000172,2]
[401358705,1768153842379,-1413.99,0.000172,2]
[401358706,1768153842388,-63000.0,0.000172,6]
[401358707,1768153842397,-501.77065485,0.00017218,2]
[401358708,1768153842406,-150.0,0.00017229,2]
[401358709,1768153842415,-501.77065485,0.00017236,2]
[401358710,1768153842424,-150.0,0.0001725,2]
[401358711,1768153842433,-501.77065485,0.00017255,2]
[401358712,1768153842441,-501.77065485,0.00017273,2]
[401358713,1768153842451,-150.0,0.0001728,2]
[401358714,1768153842460,-150.0,0.0001728,2]
[401358715,1768153842469,-13444.71412176,0.00017286,2]
[401358716,1768153842478,-1682.2,0.00017288,2]
[401358718,1768153842487,-658.94,0.0001729,2]
[401358720,1768153842495,-501.77065485,0.00017291,2]
[401358722,1768153842505,-84100.0,0.000173,6]
[401358724,1768153842513,-501.77065485,0.00017309,2]
[401358726,1768153842522,-2716.0,0.00017313,2]
[401358728,1768153842531,-150.0,0.00017325,2]
[401358730,1768153842540,-501.77065485,0.00017327,2]
[401358732,1768153842549,-266.0,0.00017335,2]
[401358734,1768153842558,-501.77065485,0.00017345,2]
[401358736,1768153842568,-501.77065485,0.00017364,2]
[401358738,1768153842577,-2716.0,0.00017376,2]
[401358740,1768153842586,-501.77065485,0.00017382,2]
[401358742,1768153842596,-658.94,0.0001739,2]
[401358744,1768153842606,-500.0,0.00017399,2]
[401358746,1768153842615,-501.77065485,0.000174,2]
[401358748,1768153842624,-150.0,0.000174,2]
[401358750,1768153842634,-150.0,0.000174,2]
[401358752,1768153842643,-150.0,0.000174,2]
[401358754,1768153842652,-105100.0,0.000174,6]
[401358756,1768153842661,-501.77065485,0.00017418,2]
[401358758,1768153842670,-969.97374903,0.00017425,2]
[401358760,1768153842680,-501.77065485,0.00017436,2]
[401358762,1768153842689,-501.77065485,0.00017455,2]
[401358764,1768153842698,-150.0,0.0001746,2]
[401358765,1768153842708,-150.0,0.0001746,2]
[401358767,1768153842717,-501.77065485,0.00017473,2]
[401358769,1768153842726,-969.97374903,0.00017479,2]
[401358771,1768153842735,-150.0,0.00017486,2]
[401358774,1768153842746,-501.77065485,0.00017491,2]
[401358776,1768153842756,-237.86,0.00017492,2]
[401358778,1768153842766,-4188.1,0.00017495,2]
[401358780,1768153842776,-158.88908691,0.00017495,2]
[401358782,1768153842785,-2000.0,0.000175,2]
[401358783,1768153842795,-21000.0,0.000175,6]
[401358786,1768153842804,-501.77065485,0.00017509,2]
[401358788,1768153842814,-501.77065485,0.00017527,2]
[401358789,1768153842826,-4188.1,0.00017541,2]
[401358792,1768153842836,-501.77065485,0.00017545,2]
[401358793,1768153842846,-150.0,0.0001755,2]
[401358795,1768153842857,-150.0,0.0001755,2]
[401358797,1768153842867,-969.97374903,0.00017562,2]
[401358800,1768153842876,-1682.2,0.00017562,2]
[401358803,1768153842885,-501.77065485,0.00017564,2]
[401358806,1768153842896,-501.77065485,0.00017582,2]
[401358808,1768153842905,-3892.64,0.00017586,2]
[401358810,1768153842914,-4188.1,0.00017587,2]
[401358812,1768153842924,-13444.71412176,0.00017593,2]
[401358814,1768153842934,-501.77065485,0.000176,2]
[401358816,1768153842944,-1000.0,0.000176,2]
[401358818,1768153842954,-21000.0,0.000176,6]
[401358820,1768153842963,-501.77065485,0.00017618,2]
[401358822,1768153842973,-1000.0,0.00017621,2]
[401358824,1768153842983,-243.38858154,0.00017621,2]
[401358826,1768153842993,-418.63063862,0.00017621,2]
[401358828,1768153843003,-1000.0,0.00017621,2]
[401358830,1768153843012,-4188.1,0.00017633,2]
[401358832,1768153843023,-501.77065485,0.00017636,2]
[401358834,1768153843032,-150.0,0.0001764,2]
[401358836,1768153843042,-150.0,0.0001764,2]
[401358838,1768153843052,-2291.8576557,0.0001764,2]
[401358840,1768153843062,-333.20546596,0.00017643,2]
[401358842,1768153843071,-969.97374903,0.00017644,2]
[401358844,1768153843081,-574.12855637,0.00017647,2]
[401358846,1768153843090,-501.77065485,0.00017655,2]
[401358848,1768153843102,-501.77065485,0.00017673,2]
[401358850,1768153843111,-4188.1,0.00017679,2]
[401358852,1768153843121,-246.87158891,0.00017687,2]
[401358854,1768153843130,-501.77065485,0.00017691,2]
[401358856,1768153843140,-969.97374903,0.00017699,2]
[401358858,1768153843149,-150.0,0.000177,2]
[401358860,1768153843159,-150.0,0.000177,2]
[401358862,1768153843168,-150.0,0.000177,2]
[401358864,1768153843178,-21000.0,0.000177,6]
[401358866,1768153843187,-2716.0,0.00017703,2]
[401358868,1768153843198,-501.77065485,0.00017709,2]
[401358870,1768153843208,-4188.1,0.00017725,2]
[401358873,1768153843218,-501.77065485,0.00017727,2]
[401358874,1768153843227,-150.0,0.00017743,2]
[401358876,1768153843237,-501.77065485,0.00017745,2]
[401358879,1768153843247,-1000.0,0.00017759,2]
[401358881,1768153843256,-501.77065485,0.00017764,2]
[401358883,1768153843265,-4188.1,0.0001777,2]
[401358884,1768153843276,-333.20546595,0.00017772,2]
[401358887,1768153843285,-150.0,0.00017775,2]
[401358888,1768153843295,-969.97374903,0.00017781,2]
[401358890,1768153843304,-501.77065485,0.00017782,2]
[401358892,1768153843314,-150.0,0.00017782,2]
[401358894,1768153843323,-276.5542584,0.000178,2]
[401358896,1768153843333,-1000.0,0.000178,2]
[401358898,1768153843342,-501.77065485,0.000178,2]
[401358900,1768153843353,-21000.0,0.000178,6]
[401358902,1768153843363,-10000.0,0.0001781,2]
[401358904,1768153843373,-4188.1,0.00017816,2]
[401358906,1768153843382,-276.55425834,0.00017817,2]
[401358908,1768153843391,-501.77065485,0.00017818,2]
[401358910,1768153843401,-2716.0,0.0001782,2]
[401358912,1768153843410,-165.213,0.0001782,2]
[401358914,1768153843419,-1578.06,0.0001782,2]
[401358916,1768153843428,-150.0,0.0001782,2]
[401358918,1768153843438,-150.0,0.0001782,2]
[401358920,1768153843447,-1552.15,0.0001782,2]
[401358922,1768153843456,-1552.15,0.0001782,2]
[401358924,1768153843466,-1552.15,0.0001782,2]
[401358926,1768153843475,-1552.15,0.0001782,2]
[401358928,1768153843485,-2523.26465,0.0001782,2]
[401358930,1768153843495,-2201.92484839,0.0001783,2]
[401358932,1768153843504,-276.55425834,0.00017833,2]
[401358934,1768153843514,-969.97374903,0.00017836,2]
[401358936,1768153843524,-1682.2,0.00017836,2]
[401358938,1768153843533,-501.77065485,0.00017836,2]
[401358940,1768153843543,-577.07124894,0.00017849,2]
[401358942,1768153843552,-150.0,0.0001785,2]
[401358944,1768153843562,-276.55425834,0.0001785,2]
[401358946,1768153843572,-2716.0,0.00017853,2]
[401358948,1768153843581,-501.77065485,0.00017855,2]
[401358950,1768153843591,-200.0,0.00017855,2]
[401358952,1768153843601,-200.0,0.00017856,2]
[401358954,1768153843611,-200.0,0.00017856,2]
[401358957,1768153843622,-4188.1,0.00017862,2]
[401358958,1768153843632,-25000.0,0.00017865,3]
[401358960,1768153843641,-276.55425834,0.00017867,2]
[401358962,1768153843651,-1000.0,0.00017872,2]
[401358965,1768153843661,-501.77065485,0.00017873,2]
[401358966,1768153843671,-500.0,0.00017873,2]
[401358968,1768153843680,-25000.0,0.00017874,3]
[401358970,1768153843690,-1000.0,0.0001788,2]
[401358972,1768153843700,-1000.0,0.0001788,2]
[401358975,1768153843710,-25000.0,0.00017882,3]
[401358976,1768153843719,-276.55425834,0.00017883,2]
[401359001,1768153843961,-501.77065485,0.00017891,2]
[401359004,1768153843972,-25000.0,0.00017891,3]
[401359005,1768153843981,-276.55425834,0.000179,2]
[401359007,1768153843992,-25000.0,0.000179,3]
[401359009,1768153844002,-24323.20926535,0.000179,3]
[401359012,1768153844012,-1000.0,0.000179,2]
[401359014,1768153844022,-990.42571281,0.000179,2]
[401359015,1768153844034,-682.54404261,0.000179,2]
[401359017,1768153844045,-682.54404251,0.000179,2]
[401359020,1768153844055,-21418.0,0.000179,6]
[401359021,1768153844064,-682.54404251,0.000179,2]
[401359023,1768153844073,-682.54404251,0.000179,2]
[401359025,1768153844085,-682.54404251,0.000179,2]
[401359028,1768153844096,-682.54404251,0.000179,2]
[401359029,1768153844106,-682.54404251,0.000179,2]
[401359031,1768153844115,-682.54404251,0.000179,2]
[401359033,1768153844125,-682.54404251,0.000179,2]
[401359036,1768153844135,-682.54404251,0.000179,2]
[401359038,1768153844145,-682.54404251,0.000179,2]
[401359040,1768153844155,-682.54404251,0.000179,2]
[401359042,1768153844165,-682.54404251,0.000179,2]
[401359044,1768153844174,-682.54404251,0.000179,2]
[401359046,1768153844183,-682.54404251,0.000179,2]
[401359047,1768153844194,-682.54404251,0.000179,2]
[401359049,1768153844203,-682.54404251,0.000179,2]
[401359051,1768153844213,-13444.71412176,0.000179,2]
[401359053,1768153844223,-682.54404251,0.000179,2]
[401359055,1768153844233,-682.54404251,0.000179,2]
[401359057,1768153844242,-682.54404251,0.000179,2]
[401359059,1768153844251,-791.45935323,0.000179,3]
[401359061,1768153844261,-333.20546595,0.000179,2]
[401359063,1768153844271,-8889.0,0.000179,2]
[401359065,1768153844280,-4188.1,0.00017908,2]
[401359067,1768153844290,-501.77065485,0.00017909,2]
[401359069,1768153844300,-1000.0,0.00017917,2]
[401359071,1768153844309,-969.97374903,0.00017918,2]
[401359074,1768153844320,-1000.0,0.00017927,2]
[401359075,1768153844329,-1000.0,0.00017927,2]
[401359076,1768153844339,-501.77065485,0.00017927,2]
[401359077,1768153844349,-1000.0,0.00017929,2]
[401359078,1768153844359,-501.77065485,0.00017945,2]
[401359079,1768153844369,-4188.1,0.00017954,2]
[401359080,1768153844379,-1000.0,0.00017959,2]
[401359081,1768153844388,-587.0,0.00017961,2]
[401359082,1768153844398,-1000.0,0.00017963,2]
[401359083,1768153844407,-501.77065485,0.00017964,2]
[401359085,1768153844417,-28016.0,0.00017973,2]
[401359087,1768153844426,-969.97374903,0.00017973,2]
[401359089,1768153844435,-500.0,0.00017973,2]
[401359091,1768153844444,-380.05360747,0.00017973,2]
[401359093,1768153844453,-500.0,0.00017973,2]
[401359095,1768153844462,-500.0,0.00017973,2]
[401359097,1768153844471,-500.0,0.00017973,2]
[401359099,1768153844480,-500.0,0.00017973,2]
[401359101,1768153844490,-500.0,0.00017973,2]
[401359103,1768153844499,-500.0,0.00017973,2]
[401359105,1768153844508,-500.0,0.00017973,2]
[401359107,1768153844517,-500.0,0.00017973,2]
[401359109,1768153844526,-500.0,0.00017973,2]
[401359112,1768153844535,-500.0,0.00017973,2]
[401359114,1768153844544,-500.0,0.00017973,2]
[401359116,1768153844553,-500.0,0.00017973,2]
[401359118,1768153844564,-500.0,0.00017973,2]
[401359120,1768153844573,-498.39272947,0.00017973,2]
[401359122,1768153844583,-500.0,0.00017973,2]
[401359124,1768153844592,-500.0,0.00017973,2]
[401359126,1768153844602,-500.0,0.00017973,2]
[401359128,1768153844611,-500.0,0.00017973,2]
[401359130,1768153844621,-500.0,0.00017973,2]
[401359132,1768153844631,-500.0,0.00017973,2]
[401359134,1768153844640,-501.77065485,0.00017982,2]
[401359136,1768153844649,-4289.6817264,0.00017985,2]
[401359138,1768153844659,-1204.07094394,0.00017987,2]
[401359140,1768153844668,-158.57,0.0001799,2]
[401359142,1768153844678,-150.0,0.0001799,2]
[401359144,1768153844687,-150.0,0.0001799,2]
[401359147,1768153844697,-150.0,0.0001799,2]
[401359149,1768153844706,-150.0,0.0001799,2]
[401359151,1768153844715,-1204.07094394,0.0001799,2]
[401359153,1768153844725,-1204.07094394,0.0001799,2]
[401359155,1768153844734,-18345.4443335,0.00017997,2]
[401359157,1768153844744,-150369.6018028,0.00017997,2]
[401359159,1768153844752,-166.9455236,0.00017999,2]
[401359161,1768153844762,-500.0,0.00017999,2]
[401359163,1768153844771,-500.0,0.00017999,2]
[401359165,1768153844779,-415.1732756,0.00017999,2]
[401359167,1768153844789,-300.0,0.00017999,2]
[401359169,1768153844798,-300.0,0.00017999,2]
[401359171,1768153844807,-300.0,0.00017999,2]
[401359173,1768153844816,-673.04563665,0.00017999,2]
[401359175,1768153844828,-150.0,0.00018,2]
[401359177,1768153844837,-150.0,0.00018,2]
[401359179,1768153844846,-501.77065485,0.00018,2]
[401359181,1768153844856,-150.0,0.00018,2]
[401359183,1768153844866,-150.0,0.00018,2]
[401359185,1768153844876,-150.37867968,0.00018,2]
[401359187,1768153844885,-178.176763,0.00018,2]
[401359189,1768153844894,-150.00000001,0.00018,2]
[401359191,1768153844904,-150.0,0.00018,2]
[401359193,1768153844913,-150.4343184,0.00018,2]